[Event "Live Chess"]
[Site "Chess.com"]
[Date "2023.05.21"]
[Round "-"]
[White "jagbama"]
[Black "Ocelot32"]
[Result "0-1"]
[WhiteElo "1199"]
[BlackElo "1432"]
[TimeControl "300"]
[EndTime "8:46:46 PDT"]
[Termination "Ocelot32 won by resignation"]

1. e4 {[%clk 0:04:58.3]} 1... e6 {[%clk 0:04:57.8]} 2. Nf3 {[%clk 0:04:57.9]}
2... d5 {[%clk 0:04:54.1]} 3. e5 {[%clk 0:04:56.4]} 3... c5 {[%clk 0:04:52.9]}
4. c3 {[%clk 0:04:55.4]} 4... Nc6 {[%clk 0:04:51.9]} 5. d4 {[%clk 0:04:53.6]}
5... cxd4 {[%clk 0:04:50.3]} 6. cxd4 {[%clk 0:04:52.7]} 6... Qb6 {[%clk
0:04:47]} 7. Be2 {[%clk 0:04:41.9]} 7... Nge7 {[%clk 0:04:40.3]} 8. O-O {[%clk
0:04:40.4]} 8... Nf5 {[%clk 0:04:38.2]} 9. Be3 {[%clk 0:04:37.3]} 9... Be7
{[%clk 0:04:35.7]} 10. Nc3 {[%clk 0:04:32.7]} 10... O-O {[%clk 0:04:33.3]} 11.
b3 {[%clk 0:04:28.6]} 11... Bd7 {[%clk 0:04:30.2]} 12. a4 {[%clk 0:04:18.6]}
12... a6 {[%clk 0:04:27.8]} 13. a5 {[%clk 0:04:17.5]} 13... Qd8 {[%clk
0:04:26.3]} 14. Na4 {[%clk 0:04:11]} 14... Nxa5 {[%clk 0:04:21.4]} 15. Nc5
{[%clk 0:04:06.9]} 15... Bxc5 {[%clk 0:04:20]} 16. Rxa5 {[%clk 0:03:56.7]} 16...
Qxa5 {[%clk 0:04:17.4]} 17. dxc5 {[%clk 0:03:56.1]} 17... Nxe3 {[%clk
0:04:01.4]} 18. fxe3 {[%clk 0:03:53.7]} 18... Qxc5 {[%clk 0:04:00]} 19. Kh1
{[%clk 0:03:47.2]} 19... Qxe3 {[%clk 0:03:53.8]} 20. b4 {[%clk 0:03:39.7]} 20...
Bc6 {[%clk 0:03:51.3]} 21. Re1 {[%clk 0:03:34.9]} 21... Qh6 {[%clk 0:03:41.1]}
22. h3 {[%clk 0:03:18.2]} 22... Rfd8 {[%clk 0:03:35.7]} 23. Kh2 {[%clk
0:03:16.4]} 23... Qf4+ {[%clk 0:03:25.8]} 24. g3 {[%clk 0:03:03.3]} 24... Qxb4
{[%clk 0:03:17.4]} 25. Bd3 {[%clk 0:02:49.8]} 25... Bb5 {[%clk 0:03:11]} 26. Ng5
{[%clk 0:02:44.5]} 26... Bxd3 {[%clk 0:03:07.3]} 27. Qxd3 {[%clk 0:02:43.3]}
27... g6 {[%clk 0:03:06]} 28. Rf1 {[%clk 0:02:40.3]} 28... Rf8 {[%clk
0:03:02.6]} 29. Rf4 {[%clk 0:02:33.6]} 29... Qb2+ {[%clk 0:02:57.6]} 30. Kg1
{[%clk 0:02:31.8]} 30... Qxe5 {[%clk 0:02:55.1]} 31. Qf3 {[%clk 0:02:30.2]}
31... Qxg5 {[%clk 0:02:51.4]} 32. h4 {[%clk 0:02:29.2]} 32... Qe5 {[%clk
0:02:48.6]} 33. h5 {[%clk 0:02:27.1]} 33... Rac8 {[%clk 0:02:45.9]} 34. h6
{[%clk 0:02:21.5]} 34... Rc1+ {[%clk 0:02:40.8]} 35. Kh2 {[%clk 0:02:20.4]}
35... Rc2+ {[%clk 0:02:34.1]} 36. Kh3 {[%clk 0:02:18.7]} 36... Qh5+ {[%clk
0:02:31.8]} 37. Rh4 {[%clk 0:02:17.7]} 37... Qxf3 {[%clk 0:02:30.4]} 0-1

[Event "Live Chess"]
[Site "Chess.com"]
[Date "2023.05.21"]
[Round "-"]
[White "JoshMcK"]
[Black "NatashaRegan"]
[Result "0-1"]
[WhiteElo "1575"]
[BlackElo "1706"]
[TimeControl "300"]
[EndTime "8:46:55 PDT"]
[Termination "NatashaRegan won on time"]

1. e4 {[%clk 0:04:58.3]} 1... d6 {[%clk 0:04:55.3]} 2. d4 {[%clk 0:04:55.9]}
2... Nf6 {[%clk 0:04:53.8]} 3. Nc3 {[%clk 0:04:52.1]} 3... g6 {[%clk 0:04:52.9]}
4. Be3 {[%clk 0:04:49.2]} 4... Bg7 {[%clk 0:04:51.9]} 5. Qd2 {[%clk 0:04:40.5]}
5... c5 {[%clk 0:04:46.1]} 6. O-O-O {[%clk 0:04:27.1]} 6... cxd4 {[%clk
0:04:43.6]} 7. Bxd4 {[%clk 0:04:25.5]} 7... Nc6 {[%clk 0:04:42.7]} 8. Be3 {[%clk
0:04:24.1]} 8... Qa5 {[%clk 0:04:37.5]} 9. Kb1 {[%clk 0:04:20.4]} 9... Be6
{[%clk 0:04:13.9]} 10. a3 {[%clk 0:03:36.9]} 10... a6 {[%clk 0:04:03.8]} 11. f3
{[%clk 0:03:30]} 11... b5 {[%clk 0:04:00.6]} 12. Nge2 {[%clk 0:03:15.5]} 12...
O-O {[%clk 0:03:57.2]} 13. Nd4 {[%clk 0:03:05.4]} 13... Nxd4 {[%clk 0:03:50.2]}
14. Bxd4 {[%clk 0:03:02.5]} 14... b4 {[%clk 0:03:49.1]} 15. axb4 {[%clk
0:02:54.3]} 15... Qxb4 {[%clk 0:03:47.3]} 16. b3 {[%clk 0:02:44.7]} 16... Rfb8
{[%clk 0:03:40.3]} 17. Na2 {[%clk 0:02:29.9]} 17... Qa3 {[%clk 0:03:34.8]} 18.
Bb2 {[%clk 0:02:18.2]} 18... Qxb2+ {[%clk 0:03:08.5]} 19. Kxb2 {[%clk
0:02:16.2]} 19... Nxe4+ {[%clk 0:03:07.5]} 20. Kc1 {[%clk 0:02:07.8]} 20... Nxd2
{[%clk 0:03:03.2]} 21. Rxd2 {[%clk 0:02:07.7]} 21... Bh6 {[%clk 0:03:00.6]} 22.
g4 {[%clk 0:01:56.7]} 22... a5 {[%clk 0:02:55]} 23. Nc3 {[%clk 0:01:53.1]} 23...
Bxd2+ {[%clk 0:02:49.3]} 24. Kxd2 {[%clk 0:01:53]} 24... Rb5 {[%clk 0:02:45.1]}
25. Bxb5 {[%clk 0:01:51.1]} 25... Rb8 {[%clk 0:02:39.6]} 26. Ra1 {[%clk
0:01:45.5]} 26... Kg7 {[%clk 0:02:30.8]} 27. Rxa5 {[%clk 0:01:41.1]} 27... Kf6
{[%clk 0:02:04.1]} 28. Ne4+ {[%clk 0:01:30]} 28... Kg7 {[%clk 0:02:02.3]} 29.
Bc4 {[%clk 0:01:25.2]} 29... d5 {[%clk 0:01:51.9]} 30. Bxd5 {[%clk 0:01:21.8]}
30... Rd8 {[%clk 0:01:50.5]} 31. c4 {[%clk 0:01:17.8]} 31... Bc8 {[%clk
0:01:42.9]} 32. Ke3 {[%clk 0:01:14.2]} 32... e6 {[%clk 0:01:41.1]} 33. Bc6
{[%clk 0:01:09.5]} 33... f5 {[%clk 0:01:36.3]} 34. gxf5 {[%clk 0:01:04.8]} 34...
gxf5 {[%clk 0:01:34.4]} 35. Ng3 {[%clk 0:01:01.9]} 35... Kf6 {[%clk 0:01:30.6]}
36. f4 {[%clk 0:00:58.9]} 36... Bd7 {[%clk 0:01:17.8]} 37. Bxd7 {[%clk
0:00:57.3]} 37... Rxd7 {[%clk 0:01:16.7]} 38. Ne2 {[%clk 0:00:52.4]} 38... h5
{[%clk 0:01:07.3]} 39. h4 {[%clk 0:00:49.7]} 39... Rg7 {[%clk 0:01:04.7]} 40.
Nd4 {[%clk 0:00:39.1]} 40... Rg3+ {[%clk 0:01:00]} 41. Kf2 {[%clk 0:00:36.9]}
41... Rg4 {[%clk 0:00:57.7]} 42. Ra6 {[%clk 0:00:29.5]} 42... Rxf4+ {[%clk
0:00:56.2]} 43. Ke3 {[%clk 0:00:29.2]} 43... Re4+ {[%clk 0:00:53.5]} 44. Kf3
{[%clk 0:00:26.1]} 44... Rxd4 {[%clk 0:00:51.5]} 45. c5 {[%clk 0:00:23.7]} 45...
Rd3+ {[%clk 0:00:47.8]} 46. Kf4 {[%clk 0:00:22.1]} 46... Rxb3 {[%clk 0:00:45.4]}
47. Ra8 {[%clk 0:00:18.2]} 47... Rb4+ {[%clk 0:00:42.6]} 48. Kg3 {[%clk
0:00:17.5]} 48... Rg4+ {[%clk 0:00:39.7]} 49. Kh3 {[%clk 0:00:16.1]} 49... Rc4
{[%clk 0:00:37]} 50. Rc8 {[%clk 0:00:15.3]} 50... Ke5 {[%clk 0:00:33.6]} 51. c6
{[%clk 0:00:14.8]} 51... Kd6 {[%clk 0:00:30]} 52. Rh8 {[%clk 0:00:13.6]} 52...
Rxc6 {[%clk 0:00:25.9]} 53. Rxh5 {[%clk 0:00:13.1]} 53... Rc3+ {[%clk
0:00:23.4]} 54. Kg2 {[%clk 0:00:12.3]} 54... Ke5 {[%clk 0:00:21.8]} 55. Kf2
{[%clk 0:00:11.7]} 55... Kf4 {[%clk 0:00:20.5]} 56. Ke2 {[%clk 0:00:10.9]} 56...
Rc2+ {[%clk 0:00:19]} 57. Kd1 {[%clk 0:00:09.7]} 57... Rh2 {[%clk 0:00:16.4]}
58. Rh8 {[%clk 0:00:09.3]} 58... e5 {[%clk 0:00:15.3]} 59. Rb8 {[%clk
0:00:07.8]} 59... e4 {[%clk 0:00:13.8]} 60. Rb4 {[%clk 0:00:07]} 60... Rxh4
{[%clk 0:00:11.8]} 61. Ke1 {[%clk 0:00:06]} 61... Rh2 {[%clk 0:00:10.8]} 62. Kf1
{[%clk 0:00:05.1]} 62... Kf3 {[%clk 0:00:09.5]} 63. Rb3+ {[%clk 0:00:04]} 63...
e3 {[%clk 0:00:08.8]} 64. Kg1 {[%clk 0:00:02.9]} 64... Rg2+ {[%clk 0:00:07]} 65.
Kh1 {[%clk 0:00:02.3]} 65... Rf2 {[%clk 0:00:05.4]} 66. Kg1 {[%clk 0:00:01.1]}
66... Ra2 {[%clk 0:00:03.6]} 67. Kh1 {[%clk 0:00:01]} 67... Ra1+ {[%clk
0:00:02.5]} 0-1

[Event "Live Chess"]
[Site "Chess.com"]
[Date "2023.05.21"]
[Round "-"]
[White "djw60"]
[Black "LiamClery2020"]
[Result "1/2-1/2"]
[WhiteElo "2158"]
[BlackElo "1995"]
[TimeControl "300"]
[EndTime "8:47:00 PDT"]
[Termination "Game drawn by agreement"]

1. d4 {[%clk 0:04:56.6]} 1... Nf6 {[%clk 0:04:59.3]} 2. c4 {[%clk 0:04:54.9]}
2... g6 {[%clk 0:04:57.1]} 3. Nc3 {[%clk 0:04:53.4]} 3... d5 {[%clk 0:04:56.6]}
4. Bg5 {[%clk 0:04:51.3]} 4... Bg7 {[%clk 0:04:54.8]} 5. Nf3 {[%clk 0:04:45.4]}
5... c6 {[%clk 0:04:54]} 6. Qb3 {[%clk 0:04:42.1]} 6... Qb6 {[%clk 0:04:52.9]}
7. c5 {[%clk 0:04:39.6]} 7... Qxb3 {[%clk 0:04:51.9]} 8. axb3 {[%clk 0:04:38.5]}
8... Nbd7 {[%clk 0:04:51.8]} 9. e3 {[%clk 0:04:36.6]} 9... O-O {[%clk 0:04:51]}
10. b4 {[%clk 0:04:35.6]} 10... Re8 {[%clk 0:04:50.3]} 11. b5 {[%clk 0:04:33.8]}
11... e5 {[%clk 0:04:48.6]} 12. Be2 {[%clk 0:04:29.5]} 12... exd4 {[%clk
0:04:46.1]} 13. exd4 {[%clk 0:04:27.4]} 13... Ne4 {[%clk 0:04:45.5]} 14. Be3
{[%clk 0:04:23]} 14... f5 {[%clk 0:04:40]} 15. g3 {[%clk 0:04:07.5]} 15... Ndxc5
{[%clk 0:04:26.9]} 16. dxc5 {[%clk 0:03:23]} 16... Nxc3 {[%clk 0:04:24]} 17.
bxc6 {[%clk 0:03:11.2]} 17... bxc6 {[%clk 0:04:22.7]} 18. Ba6 {[%clk 0:03:05.8]}
18... d4 {[%clk 0:04:10]} 19. bxc3 {[%clk 0:03:04.3]} 19... dxe3 {[%clk
0:04:07.7]} 20. O-O {[%clk 0:02:59.2]} 20... exf2+ {[%clk 0:04:02.7]} 21. Kxf2
{[%clk 0:02:53.7]} 21... Bxc3 {[%clk 0:03:58.6]} 1/2-1/2

[Event "Live Chess"]
[Site "Chess.com"]
[Date "2023.05.21"]
[Round "-"]
[White "slava_ukr"]
[Black "Ian-Morley"]
[Result "1-0"]
[WhiteElo "2347"]
[BlackElo "1096"]
[TimeControl "300"]
[EndTime "8:47:03 PDT"]
[Termination "slava_ukr won by resignation"]

1. e4 {[%clk 0:04:58.8]} 1... e5 {[%clk 0:04:58.4]} 2. Nf3 {[%clk 0:04:57.3]}
2... Nc6 {[%clk 0:04:57.4]} 3. Bb5 {[%clk 0:04:56.6]} 3... a6 {[%clk 0:04:56.3]}
4. Bxc6 {[%clk 0:04:55.9]} 4... dxc6 {[%clk 0:04:55.2]} 5. O-O {[%clk
0:04:54.9]} 5... Bc5 {[%clk 0:04:53.5]} 6. Nxe5 {[%clk 0:04:50.7]} 6... Nf6
{[%clk 0:04:47.2]} 7. d3 {[%clk 0:04:49]} 7... Be6 {[%clk 0:04:45.4]} 8. Nc3
{[%clk 0:04:46.9]} 8... Bd6 {[%clk 0:04:41.8]} 9. Nf3 {[%clk 0:04:45.5]} 9...
Bc5 {[%clk 0:04:40.1]} 10. Bg5 {[%clk 0:04:39.5]} 10... O-O {[%clk 0:04:38.4]}
11. e5 {[%clk 0:04:38.2]} 11... h6 {[%clk 0:04:36.5]} 12. Bh4 {[%clk 0:04:36.8]}
12... g5 {[%clk 0:04:35.5]} 13. Nxg5 {[%clk 0:04:34]} 13... Bxf2+ {[%clk
0:04:32.2]} 14. Rxf2 {[%clk 0:04:31.9]} 14... Ng4 {[%clk 0:04:14.6]} 15. Nxe6
{[%clk 0:04:03.5]} 15... Qxh4 {[%clk 0:04:08.6]} 16. g3 {[%clk 0:04:02]} 16...
Qxh2+ {[%clk 0:04:07.7]} 17. Rxh2 {[%clk 0:04:00.8]} 17... Nxh2 {[%clk
0:04:05.6]} 18. Nxf8 {[%clk 0:03:55.8]} 18... Kxf8 {[%clk 0:03:59.1]} 19. Kxh2
{[%clk 0:03:54.8]} 1-0

[Event "Live Chess"]
[Site "Chess.com"]
[Date "2023.05.21"]
[Round "-"]
[White "WilliamofOrange16th"]
[Black "LiamBellwood"]
[Result "0-1"]
[WhiteElo "1845"]
[BlackElo "1930"]
[TimeControl "300"]
[EndTime "8:47:12 PDT"]
[Termination "LiamBellwood won by resignation"]

1. e4 {[%clk 0:04:57.7]} 1... e6 {[%clk 0:04:59.9]} 2. f4 {[%clk 0:04:56]} 2...
d5 {[%clk 0:04:59.8]} 3. e5 {[%clk 0:04:54.9]} 3... c5 {[%clk 0:04:59.2]} 4. Nf3
{[%clk 0:04:54.3]} 4... Nc6 {[%clk 0:04:59.1]} 5. c3 {[%clk 0:04:53.7]} 5... Nh6
{[%clk 0:04:56.6]} 6. Na3 {[%clk 0:04:50.3]} 6... Nf5 {[%clk 0:04:55.7]} 7. Nc2
{[%clk 0:04:49.4]} 7... Qb6 {[%clk 0:04:54.8]} 8. d4 {[%clk 0:04:48.2]} 8...
cxd4 {[%clk 0:04:53.7]} 9. cxd4 {[%clk 0:04:45.6]} 9... h5 {[%clk 0:04:50]} 10.
Bd3 {[%clk 0:04:18.5]} 10... g6 {[%clk 0:04:46.7]} 11. Bxf5 {[%clk 0:04:06.3]}
11... gxf5 {[%clk 0:04:43]} 12. O-O {[%clk 0:04:05.6]} 12... Bd7 {[%clk
0:04:40.2]} 13. Kh1 {[%clk 0:04:04.5]} 13... O-O-O {[%clk 0:04:34]} 14. a4
{[%clk 0:03:59.7]} 14... Kb8 {[%clk 0:04:27.5]} 15. Qe2 {[%clk 0:03:50]} 15...
Nb4 {[%clk 0:04:13.5]} 16. Nxb4 {[%clk 0:03:42.7]} 16... Bxb4 {[%clk 0:04:12.2]}
17. Bd2 {[%clk 0:03:35.2]} 17... Rc8 {[%clk 0:04:09.5]} 18. a5 {[%clk
0:03:29.1]} 18... Bb5 {[%clk 0:03:58]} 19. axb6 {[%clk 0:03:25.2]} 19... Bxe2
{[%clk 0:03:56.4]} 20. Rf2 {[%clk 0:03:11.7]} 20... Bxd2 {[%clk 0:03:27.1]} 21.
bxa7+ {[%clk 0:03:00.7]} 21... Ka8 {[%clk 0:03:26]} 22. Nxd2 {[%clk 0:02:52]}
22... Ba6 {[%clk 0:03:10.9]} 23. Nb3 {[%clk 0:02:48.4]} 23... Rc4 {[%clk
0:03:03.7]} 24. Rd2 {[%clk 0:02:38.4]} 24... Rhc8 {[%clk 0:03:00.8]} 25. Nc5
{[%clk 0:02:19.2]} 25... Kxa7 {[%clk 0:02:47.2]} 26. b3 {[%clk 0:02:02.6]} 26...
Rb4 {[%clk 0:02:40.7]} 27. g3 {[%clk 0:01:50.8]} 27... Kb6 {[%clk 0:02:19.7]}
28. Kg2 {[%clk 0:01:37.9]} 28... Bb5 {[%clk 0:02:04]} 29. Kh3 {[%clk 0:01:28.7]}
29... Rh8 {[%clk 0:01:43.2]} 30. Kg2 {[%clk 0:01:25]} 30... Bc6 {[%clk
0:01:40.5]} 31. Kf3 {[%clk 0:01:18.4]} 31... Rb5 {[%clk 0:01:35.3]} 32. Ke3
{[%clk 0:01:16.5]} 32... Ra5 {[%clk 0:01:33.3]} 33. Rxa5 {[%clk 0:01:12.7]}
33... Kxa5 {[%clk 0:01:31.9]} 34. Ra2+ {[%clk 0:01:12.3]} 34... Kb6 {[%clk
0:01:31.5]} 35. Kd3 {[%clk 0:01:09]} 35... Bb5+ {[%clk 0:01:29.7]} 36. Kc3
{[%clk 0:01:08.3]} 36... Kc6 {[%clk 0:01:26.5]} 37. Ra7 {[%clk 0:01:04.5]} 37...
Ba6 {[%clk 0:01:18.5]} 38. Nxa6 {[%clk 0:01:03.1]} 38... Kb6 {[%clk 0:01:15.7]}
39. Rxb7+ {[%clk 0:00:52]} 39... Kxb7 {[%clk 0:01:15.6]} 40. Nc5+ {[%clk
0:00:51]} 40... Kc6 {[%clk 0:01:15.2]} 41. Nd3 {[%clk 0:00:46.1]} 41... h4
{[%clk 0:01:13.2]} 0-1

[Event "Live Chess"]
[Site "Chess.com"]
[Date "2023.05.21"]
[Round "-"]
[White "SavagePawn7"]
[Black "GEMdzq"]
[Result "0-1"]
[WhiteElo "775"]
[BlackElo "2217"]
[TimeControl "300"]
[EndTime "8:47:13 PDT"]
[Termination "GEMdzq won by checkmate"]

1. e4 {[%clk 0:04:56.2]} 1... d6 {[%clk 0:04:58.7]} 2. d4 {[%clk 0:04:54]} 2...
Nf6 {[%clk 0:04:58.6]} 3. Nc3 {[%clk 0:04:51.2]} 3... g6 {[%clk 0:04:58.2]} 4.
Nf3 {[%clk 0:04:46.4]} 4... Bg7 {[%clk 0:04:57.7]} 5. h4 {[%clk 0:04:44.7]} 5...
c5 {[%clk 0:04:51.3]} 6. Be3 {[%clk 0:04:35.5]} 6... cxd4 {[%clk 0:04:49.3]} 7.
Bxd4 {[%clk 0:04:34.4]} 7... Nc6 {[%clk 0:04:48.6]} 8. Bxf6 {[%clk 0:04:28]}
8... Bxf6 {[%clk 0:04:47.1]} 9. g4 {[%clk 0:04:18]} 9... Bxg4 {[%clk 0:04:45.5]}
10. Bh3 {[%clk 0:04:15.1]} 10... Bh5 {[%clk 0:04:37.1]} 11. Nd5 {[%clk
0:04:06.9]} 11... Ne5 {[%clk 0:04:31.7]} 12. Bg2 {[%clk 0:03:44.7]} 12... e6
{[%clk 0:04:22.7]} 13. Nxf6+ {[%clk 0:03:43.2]} 13... Qxf6 {[%clk 0:04:22.6]}
14. Qxd6 {[%clk 0:03:23.9]} 14... Nxf3+ {[%clk 0:04:15]} 15. Bxf3 {[%clk
0:03:22.5]} 15... Rd8 {[%clk 0:04:08.5]} 16. Qg3 {[%clk 0:03:00.5]} 16... Qxf3
{[%clk 0:04:07.1]} 17. Qxf3 {[%clk 0:02:58.9]} 17... Bxf3 {[%clk 0:04:07]} 18.
Rg1 {[%clk 0:02:55.7]} 18... h5 {[%clk 0:04:02.8]} 19. Kf1 {[%clk 0:02:53.5]}
19... Ke7 {[%clk 0:04:01.6]} 20. c4 {[%clk 0:02:45.3]} 20... Rd7 {[%clk
0:03:59.3]} 21. b3 {[%clk 0:02:44]} 21... Rhd8 {[%clk 0:03:58.8]} 22. Rg3 {[%clk
0:02:40.2]} 22... Rd1+ {[%clk 0:03:57.9]} 23. Rxd1 {[%clk 0:02:36.1]} 23...
Rxd1# {[%clk 0:03:57.8]} 0-1

[Event "Live Chess"]
[Site "Chess.com"]
[Date "2023.05.21"]
[Round "-"]
[White "Misha145Chess"]
[Black "1600x"]
[Result "0-1"]
[WhiteElo "621"]
[BlackElo "1936"]
[TimeControl "300"]
[EndTime "8:47:18 PDT"]
[Termination "1600x won by checkmate"]

1. e4 {[%clk 0:04:57.6]} 1... e5 {[%clk 0:04:59.9]} 2. Nf3 {[%clk 0:04:56.9]}
2... Nf6 {[%clk 0:04:59.2]} 3. Nxe5 {[%clk 0:04:55.6]} 3... Nc6 {[%clk
0:04:59.1]} 4. Nxc6 {[%clk 0:04:54.2]} 4... dxc6 {[%clk 0:04:59]} 5. Qe2 {[%clk
0:04:53.1]} 5... c5 {[%clk 0:04:58.9]} 6. e5 {[%clk 0:04:52.4]} 6... Nd5 {[%clk
0:04:57.8]} 7. c4 {[%clk 0:04:49]} 7... Nb4 {[%clk 0:04:55.5]} 8. Qd1 {[%clk
0:04:39.3]} 8... Qd4 {[%clk 0:04:53.5]} 9. a3 {[%clk 0:04:30.4]} 9... Qe4+
{[%clk 0:04:52.4]} 10. Qe2 {[%clk 0:04:23.6]} 10... Nc2+ {[%clk 0:04:50.3]} 11.
Kd1 {[%clk 0:04:18.6]} 11... Qxe2+ {[%clk 0:04:48.6]} 12. Kxe2 {[%clk
0:04:11.4]} 12... Nxa1 {[%clk 0:04:47.2]} 13. Ke3 {[%clk 0:04:10.3]} 13... Nc2+
{[%clk 0:04:45.4]} 14. Ke4 {[%clk 0:04:08.7]} 14... g6 {[%clk 0:04:43.4]} 15.
Kd5 {[%clk 0:04:08]} 15... Bf5 {[%clk 0:04:41.3]} 16. h3 {[%clk 0:03:59.9]}
16... c6# {[%clk 0:04:38.8]} 0-1

[Event "Live Chess"]
[Site "Chess.com"]
[Date "2023.05.21"]
[Round "-"]
[White "domrobson"]
[Black "TheSmoulderingMaster"]
[Result "0-1"]
[WhiteElo "1797"]
[BlackElo "1675"]
[TimeControl "300"]
[EndTime "8:47:25 PDT"]
[Termination "TheSmoulderingMaster won by resignation"]

1. d4 {[%clk 0:04:57.9]} 1... Nf6 {[%clk 0:04:58.7]} 2. c4 {[%clk 0:04:57.2]}
2... d6 {[%clk 0:04:58]} 3. Nf3 {[%clk 0:04:55.9]} 3... g6 {[%clk 0:04:56.1]} 4.
Nc3 {[%clk 0:04:54]} 4... Bg7 {[%clk 0:04:55.3]} 5. e4 {[%clk 0:04:53.1]} 5...
O-O {[%clk 0:04:54.5]} 6. Be2 {[%clk 0:04:52.7]} 6... Bg4 {[%clk 0:04:53.4]} 7.
O-O {[%clk 0:04:52.1]} 7... Nbd7 {[%clk 0:04:52.7]} 8. Be3 {[%clk 0:04:47.5]}
8... e5 {[%clk 0:04:51.5]} 9. d5 {[%clk 0:04:45.5]} 9... Nc5 {[%clk 0:04:49.8]}
10. Bxc5 {[%clk 0:04:43.5]} 10... dxc5 {[%clk 0:04:49.1]} 11. Ne1 {[%clk
0:04:41.7]} 11... Bxe2 {[%clk 0:04:47.2]} 12. Qxe2 {[%clk 0:04:41]} 12... Nh5
{[%clk 0:04:46.5]} 13. g3 {[%clk 0:04:38.9]} 13... f5 {[%clk 0:04:44.8]} 14. Ng2
{[%clk 0:04:36.7]} 14... f4 {[%clk 0:04:43.6]} 15. g4 {[%clk 0:04:33.3]} 15...
f3 {[%clk 0:04:42.3]} 0-1

[Event "Live Chess"]
[Site "Chess.com"]
[Date "2023.05.21"]
[Round "-"]
[White "Long1968"]
[Black "Olisingapore"]
[Result "0-1"]
[WhiteElo "981"]
[BlackElo "1809"]
[TimeControl "300"]
[EndTime "8:47:27 PDT"]
[Termination "Olisingapore won on time"]

1. e4 {[%clk 0:04:54.2]} 1... c5 {[%clk 0:04:59.1]} 2. c3 {[%clk 0:04:51.4]}
2... Nf6 {[%clk 0:04:57.4]} 3. e5 {[%clk 0:04:36.8]} 3... Nd5 {[%clk 0:04:56.3]}
4. d4 {[%clk 0:04:34.4]} 4... cxd4 {[%clk 0:04:56.2]} 5. cxd4 {[%clk 0:04:32.4]}
5... Nc6 {[%clk 0:04:55.6]} 6. Nf3 {[%clk 0:04:28.7]} 6... d6 {[%clk 0:04:54.5]}
7. exd6 {[%clk 0:04:25.5]} 7... Qxd6 {[%clk 0:04:54.4]} 8. Nc3 {[%clk
0:04:22.2]} 8... Bg4 {[%clk 0:04:27.3]} 9. Be2 {[%clk 0:04:16.6]} 9... g6 {[%clk
0:04:24.6]} 10. O-O {[%clk 0:03:38.3]} 10... Bg7 {[%clk 0:04:18.5]} 11. Ne4
{[%clk 0:03:21.2]} 11... Qc7 {[%clk 0:04:11.7]} 12. Bb5 {[%clk 0:03:07.1]} 12...
O-O {[%clk 0:04:04.5]} 13. Bxc6 {[%clk 0:02:51.7]} 13... Qxc6 {[%clk 0:04:04.4]}
14. Be3 {[%clk 0:02:19.5]} 14... Nxe3 {[%clk 0:03:59.2]} 15. fxe3 {[%clk
0:02:06.7]} 15... Qxe4 {[%clk 0:03:57.3]} 16. Qd2 {[%clk 0:01:55.1]} 16... Rad8
{[%clk 0:03:47.6]} 17. Rac1 {[%clk 0:01:43.4]} 17... e5 {[%clk 0:03:45]} 18.
Nxe5 {[%clk 0:01:19.8]} 18... Bxe5 {[%clk 0:03:42.3]} 19. h3 {[%clk 0:01:05.7]}
19... Bxh3 {[%clk 0:03:13.7]} 20. gxh3 {[%clk 0:00:49.7]} 20... Bb8 {[%clk
0:03:11.9]} 21. Rc4 {[%clk 0:00:25.7]} 21... Qe7 {[%clk 0:03:06]} 22. Rfc1
{[%clk 0:00:17.8]} 22... Qg5+ {[%clk 0:03:05]} 23. Qg2 {[%clk 0:00:11.8]} 23...
Qxe3+ {[%clk 0:02:57.2]} 24. Kh1 {[%clk 0:00:02]} 24... Rxd4 {[%clk 0:02:51.5]}
0-1

[Event "Live Chess"]
[Site "Chess.com"]
[Date "2023.05.21"]
[Round "-"]
[White "defenderalist"]
[Black "gmnorfolk"]
[Result "0-1"]
[WhiteElo "1627"]
[BlackElo "2122"]
[TimeControl "300"]
[EndTime "8:47:27 PDT"]
[Termination "gmnorfolk won by resignation"]

1. e4 {[%clk 0:04:57.5]} 1... c5 {[%clk 0:04:57.5]} 2. Nf3 {[%clk 0:04:56]} 2...
d6 {[%clk 0:04:55.4]} 3. d4 {[%clk 0:04:55.4]} 3... cxd4 {[%clk 0:04:52.6]} 4.
Nxd4 {[%clk 0:04:54.4]} 4... Nf6 {[%clk 0:04:51.2]} 5. Nc3 {[%clk 0:04:52.8]}
5... a6 {[%clk 0:04:50.9]} 6. Bd3 {[%clk 0:04:51.5]} 6... g6 {[%clk 0:04:46.9]}
7. O-O {[%clk 0:04:50.2]} 7... Bg7 {[%clk 0:04:46.5]} 8. Nde2 {[%clk 0:04:47.7]}
8... O-O {[%clk 0:04:45.8]} 9. f4 {[%clk 0:04:44.1]} 9... Nbd7 {[%clk 0:04:41]}
10. a3 {[%clk 0:04:37.3]} 10... b5 {[%clk 0:04:39.8]} 11. Rb1 {[%clk 0:04:34.2]}
11... Bb7 {[%clk 0:04:38.8]} 12. f5 {[%clk 0:04:31.8]} 12... Rc8 {[%clk
0:04:33.9]} 13. fxg6 {[%clk 0:04:28]} 13... fxg6 {[%clk 0:04:29]} 14. Bg5 {[%clk
0:04:26.1]} 14... Ne5 {[%clk 0:04:20.5]} 15. Qd2 {[%clk 0:04:22.1]} 15... Qd7
{[%clk 0:04:13.8]} 16. Bh6 {[%clk 0:04:15.8]} 16... e6 {[%clk 0:04:11.5]} 17.
Bxg7 {[%clk 0:04:14]} 17... Kxg7 {[%clk 0:04:10]} 18. Nf4 {[%clk 0:04:03.4]}
18... Rce8 {[%clk 0:03:58.3]} 19. Rbe1 {[%clk 0:03:56.6]} 19... g5 {[%clk
0:03:43.4]} 20. Nfe2 {[%clk 0:03:54]} 20... h6 {[%clk 0:03:40.8]} 21. Ng3 {[%clk
0:03:50.3]} 21... Kh7 {[%clk 0:03:34.9]} 22. Qe2 {[%clk 0:03:40.8]} 22... Qf7
{[%clk 0:03:28.6]} 23. Nd1 {[%clk 0:03:33.2]} 23... Bc6 {[%clk 0:03:24.2]} 24.
c3 {[%clk 0:03:22.6]} 24... Qb7 {[%clk 0:03:16.7]} 25. Bb1 {[%clk 0:03:18.1]}
25... Qb6+ {[%clk 0:03:12.7]} 26. Kh1 {[%clk 0:03:16.6]} 26... a5 {[%clk
0:03:07]} 27. Nh5 {[%clk 0:03:14.8]} 27... Nxh5 {[%clk 0:02:58.4]} 28. Qxh5
{[%clk 0:03:13.6]} 28... Qb7 {[%clk 0:02:53.5]} 29. Qe2 {[%clk 0:02:56.3]} 29...
Qg7 {[%clk 0:02:49.2]} 30. Rxf8 {[%clk 0:02:52.1]} 30... Rxf8 {[%clk 0:02:47.2]}
31. Nf2 {[%clk 0:02:49.2]} 31... Qf6 {[%clk 0:02:40]} 32. h3 {[%clk 0:02:45]}
32... Qxf2 {[%clk 0:02:36.4]} 33. Qxf2 {[%clk 0:02:41.4]} 33... Rxf2 {[%clk
0:02:35.2]} 34. Kg1 {[%clk 0:02:38.5]} 34... Rxb2 {[%clk 0:02:33.9]} 0-1